fUST/lending_fUST_20241028
["ID","MTS","AMOUNT","RATE_DAILY","PERIOD"]
[340931893,1730125781927,-241.27550687,0.00022965,2]
[340931894,1730125781950,-500.0,0.00022965,2]
[340931895,1730125781972,-500.0,0.00022965,2]
[340931896,1730125781996,-500.0,0.00022965,2]
[340931897,1730125782019,-500.0,0.00022965,2]
[340931898,1730125782045,-500.0,0.00022965,2]
[340931899,1730125782068,-500.0,0.00022965,2]
[340931900,1730125782091,-500.0,0.00022965,2]
[340931901,1730125782114,-500.0,0.00022965,2]
[340931902,1730125782138,-596.57487589,0.00022965,2]
[340931903,1730125782161,-151.0,0.00022966,7]
[340931904,1730125782185,-153.815385,0.00022966,7]
[340931905,1730125782207,-151.0,0.00022966,7]
[340931906,1730125782230,-151.0,0.00022966,7]
[340931907,1730125782254,-151.0,0.00022966,7]
[340931908,1730125782279,-151.0,0.00022966,7]
[340931909,1730125782301,-151.0,0.00022966,7]
[340931910,1730125782325,-151.0,0.00022966,7]
[340931911,1730125782349,-151.0,0.00022966,7]
[340931912,1730125782371,-151.0,0.00022966,7]
[340931913,1730125782394,-151.0,0.00022966,7]
[340931914,1730125782416,-151.0,0.00022966,7]
[340931915,1730125782439,-202.680252,0.00022966,7]
[340931916,1730125782463,-151.0,0.00022966,7]
[340931917,1730125782486,-151.0,0.00022967,7]
[340931918,1730125782509,-151.0,0.00022967,7]
[340931919,1730125782533,-151.0,0.00022967,7]
[340931920,1730125782558,-151.0,0.00022967,7]
[340931921,1730125782581,-151.0,0.00022967,7]
[340931922,1730125782604,-151.0,0.00022967,7]
[340931923,1730125782628,-151.0,0.00022968,7]
[340931924,1730125782653,-151.0,0.00022969,7]
[340931925,1730125782676,-151.0,0.00022969,7]
[340931926,1730125782703,-151.0,0.00022969,7]
[340931927,1730125782726,-151.0,0.0002297,7]
[340931928,1730125782751,-33782.9156547,0.0002297,3]
[340931929,1730125782779,-5109.74892433,0.0002297,3]
[340931930,1730125782803,-500.0,0.00022973,2]
[340931931,1730125782827,-500.0,0.00022973,2]
[340931932,1730125782850,-500.0,0.00022973,2]
[340931933,1730125782874,-500.0,0.00022973,2]
[340931934,1730125782898,-500.0,0.00022973,2]
[340931935,1730125782924,-500.0,0.00022973,2]
[340931936,1730125782947,-151.0,0.00022977,7]
[340931937,1730125782970,-151.0,0.00022977,7]
[340931938,1730125782993,-151.0,0.00022977,7]
[340931939,1730125783016,-152.036263,0.00022977,7]
[340931940,1730125783045,-33782.9156547,0.0002298,3]
[340931941,1730125783069,-5109.74892433,0.0002298,3]
[340931942,1730125783095,-10463.55681369,0.0002299,3]
[340931984,1730125832145,-24589.9229329,0.0002275,2]
[340931985,1730125832156,-2729.74290799,0.0002289,2]
[340931986,1730125832165,-300.0,0.00022989,2]
[340931987,1730125832175,-300.0,0.00022989,2]
[340931988,1730125832184,-407.57606592,0.0002299,2]
[340931989,1730125832194,-57102.27449571,0.0002299,3]
[340931990,1730125832203,-10219.4978487,0.0002299,3]
[340931991,1730125832212,-664.77,0.0002299,3]
[340931992,1730125832221,-105511.19240253,0.00023,2]
[340931993,1730125832233,-2064.5055936,0.00023,2]
[340932009,1730125840579,-0.16316311,0.00022999,2]
[340932011,1730125843256,-349.52569039,0.00022999,2]
[340932012,1730125843266,-78.16934152,0.00022999,2]
[340932017,1730125845974,-421.83065848,0.00022999,2]
[340932018,1730125845984,-500.0,0.00022999,2]
[340932019,1730125845995,-176.35406625,0.00022999,2]
[340932020,1730125846004,-500.0,0.00022999,2]
[340932021,1730125846014,-500.0,0.00022999,2]
[340932022,1730125846024,-592.31895532,0.00022999,2]
[340932023,1730125846033,-500.0,0.00022999,2]
[340932024,1730125846043,-500.0,0.00022999,2]
[340932025,1730125846052,-348.57266417,0.00022999,2]
[340932026,1730125846062,-4425.35657275,0.00023,2]
[340932027,1730125846071,-180.0,0.00023,2]
[340932028,1730125846083,-578.11316481,0.00023,2]
[340932029,1730125846093,-500.0,0.00023,2]
[340932030,1730125846104,-500.0,0.00023,2]
[340932031,1730125846116,-2869.92029652,0.00023244,2]
[340932032,1730125846128,-323.286,0.0002354,2]
[340932033,1730125846138,-150.0,0.00023839,2]
[340932034,1730125846147,-528.0,0.00023839,2]
[340932035,1730125846158,-1127.421,0.00023839,2]
[340932036,1730125846167,-703.751,0.00023839,2]
[340932037,1730125846178,-171.324,0.00023852,5]
[340932038,1730125846187,-153.00886095,0.00024,2]
[340932039,1730125846200,-150.0,0.00024032,2]
[340932040,1730125846210,-240.171295,0.000241,2]
[340932041,1730125846223,-150.112233,0.000243,4]
[340932042,1730125846232,-150.112233,0.000243,5]
[340932043,1730125846244,-418.76,0.00024309,3]
[340932044,1730125846253,-837.54,0.00024316,3]
[340932045,1730125846264,-1000.0,0.00024342,2]
[340932046,1730125846274,-809.05074908,0.00024342,2]
[340932047,1730125846284,-1000.0,0.00024342,2]
[340932048,1730125846295,-1000.0,0.0002437,2]
[340932049,1730125846307,-1000.0,0.0002437,2]
[340932050,1730125846319,-5109.74892433,0.000244,3]
[340932051,1730125846330,-233.37741288,0.00024409,2]
[340932052,1730125846340,-254.78055965,0.00024409,2]
[340932053,1730125846351,-500.0,0.00024409,2]
[340932054,1730125846361,-194.88693396,0.00024409,2]
[340932055,1730125846371,-500.0,0.00024409,2]
[340932056,1730125846381,-500.0,0.00024409,2]
[340932057,1730125846392,-500.0,0.00024409,2]
[340932058,1730125846400,-500.0,0.00024409,2]
[340932059,1730125846410,-219.34904018,0.00024409,2]
[340932060,1730125846419,-500.0,0.00024409,2]
[340932061,1730125846428,-500.0,0.00024409,2]
[340932062,1730125846437,-500.0,0.00024409,2]
[340932063,1730125846446,-500.0,0.00024409,2]
[340932064,1730125846455,-342.94379021,0.00024409,2]
[340932065,1730125846465,-500.0,0.00024409,2]
[340932066,1730125846475,-42143.07576969,0.0002441,2]
[340932067,1730125846484,-206.8376335,0.00024443,2]
[340932068,1730125846493,-206.48449629,0.00024443,2]
[340932069,1730125846503,-197382.14062932,0.00024444,2]
[340932070,1730125867116,158.701706,0.00013973,2]
[340932072,1730126731129,-158.701706,0.00021661,2]
[340932073,1730126731152,-172.839579,0.00022477,2]
[340932074,1730126731178,-212.505431,0.00022749,2]
[340932075,1730126731201,-1746.88914309,0.0002317,2]
[340932076,1730126764899,10000.0,0.00022001,60]
[340932077,1730126859305,1123.26147266,0.00036169,120]
[340932078,1730126933212,158.843285,0.00013973,2]
[340932104,1730127032115,-158.843285,0.00022174,2]
[340932106,1730127032125,-4253.9587467,0.00023411,2]
[340932108,1730127032135,-332.787,0.0002354,2]
[340932110,1730127032144,-150.0,0.00023793,2]
[340932112,1730127032154,-188.144,0.00023793,2]
[340932115,1730127032164,-300.0,0.000243,2]
[340932117,1730127032174,-300.0,0.000243,2]
[340932119,1730127032183,-8752.92418851,0.00024301,2]
[340932121,1730127032192,-2948.58482296,0.00024397,2]
[340932123,1730127032202,-1699.15161252,0.000244,2]
[340932125,1730127032212,-803.96924388,0.00024425,2]
[340932127,1730127032221,-803.96924386,0.0002443,2]
[340932129,1730127032232,-803.96924386,0.00024436,2]
[340932131,1730127032243,-302.6239726,0.00024438,2]
[340932133,1730127032254,-803.96924386,0.00024441,2]
[340932135,1730127032265,-172.36469458,0.00024443,2]
[340932137,1730127032275,-76075.69043448,0.00024444,2]
[340932140,1730127032286,-6786.00533144,0.00024444,2]
[340932220,1730127038378,-83715.44994518,0.00024444,2]
[340932232,1730127040266,-1408.15436948,0.00024444,2]
[340932244,1730127043277,-3820.55047675,0.00024444,2]
[340932255,1730127539603,158.984864,0.00013973,2]
[340932256,1730127943098,-1000.0,0.00022,30]
[340932257,1730127943121,-171.0,0.00022,2]
[340932258,1730127943143,-212.505431,0.00022661,2]
[340932259,1730127943167,-158.984864,0.00022759,2]
[340932260,1730127943189,-150.0,0.00023793,2]
[340932261,1730127943210,-150.0,0.00023793,2]
[340932262,1730127943240,-150.0,0.00023793,2]
[340932263,1730127943263,-160.79384878,0.00024334,2]
[340932264,1730127943284,-160.79384877,0.00024359,2]
[340932265,1730127943305,-260.0,0.000244,2]
[340932266,1730127943325,-2014.38,0.000244,2]
[340932267,1730127943347,-300.0,0.00024424,2]
[340932268,1730127943370,-300.0,0.00024424,2]
[340932269,1730127943392,-370.63588688,0.00024424,2]
[340932270,1730127943420,-35888.8589607,0.00024425,3]
[340932326,1730128238754,-160.79384877,0.00024385,2]
[340932327,1730128238763,-150.0,0.000244,2]
[340932328,1730128238774,-160.79384877,0.0002441,2]
[340932329,1730128238786,-300.0,0.00024424,2]
[340932330,1730128238797,-300.0,0.00024424,2]
[340932331,1730128238808,-247.09059126,0.00024424,2]
[340932332,1730128238820,-47092.2590518,0.00024425,3]
[340932333,1730128238829,-28632.4112194,0.00024425,3]
[340932339,1730128240400,-253.2,0.00024425,3]
[340932356,1730128243446,-6126.91857479,0.00024425,3]
[340932357,1730128543478,1243.72310279,0.00036156,30]
[340932358,1730128594073,5423.03090878,0.00036156,30]
[340932359,1730128725384,161.019147,0.00013973,2]
[340932361,1730128805629,785.98657855,0.00019743,2]
[340932376,1730129228589,160.9669773,0.00013973,2]
[340932381,1730129349114,-200.19400832,0.0002061,2]
[340932382,1730129360143,-463.30599168,0.0002061,2]
[340932425,1730129432603,-597.76531302,0.00021044,3]
[340932426,1730129432616,-247.8079741,0.00021144,2]
[340932427,1730129432627,-167.462193,0.00021329,2]
[340932428,1730129432636,-191.0406193,0.00021372,2]
[340932430,1730129432647,-161.019147,0.00021661,2]
[340932432,1730129432656,-300.0,0.00021704,2]
[340932434,1730129432665,-300.0,0.00021704,2]
[340932436,1730129432674,-24900.0,0.00021705,2]
[340932438,1730129432684,-191.663045,0.00021918,2]
[340932440,1730129432694,-308.0,0.00022,2]
[340932442,1730129432704,-308.0,0.00022192,2]
[340932444,1730129432714,-283.06937112,0.00022406,2]
[340932446,1730129432723,-308.0,0.00023014,2]
[340932448,1730129432734,-190.489477,0.00023036,2]
[340932453,1730129432923,-2749.57641505,0.00023192,2]
[340932454,1730129432934,-5000.0,0.00023287,2]
[340932455,1730129432946,-191.663045,0.00023291,2]
[340932456,1730129432957,-420.0,0.00023592,2]
[340932457,1730129432967,-151.3751782,0.00023678,2]
[340932458,1730129432976,-150.0,0.0002377,2]
[340932459,1730129432987,-210.8524058,0.00023781,2]
[340932460,1730129432998,-210.8524058,0.00023781,2]
[340932461,1730129433008,-210.8524058,0.00023781,2]
[340932462,1730129433018,-210.8524058,0.00023781,2]
[340932463,1730129433028,-210.8524058,0.00023781,2]
[340932464,1730129433038,-171.324,0.00023819,5]
[340932465,1730129433048,-265.61202919,0.00023852,2]
[340932466,1730129433058,-420.0,0.00023874,2]
[340932467,1730129433067,-2000.0,0.00024,3]
[340932468,1730129433077,-287.06707623,0.00024,2]
[340932469,1730129433087,-342.769,0.0002403,2]
[340932470,1730129433097,-5721.7814575,0.00024066,2]
[340932471,1730129433108,-153.5822275,0.00024137,2]
[340932472,1730129433117,-308.0,0.00024164,2]
[340932473,1730129433128,-160.79384877,0.00024223,2]
[340932474,1730129433138,-5721.7814576,0.00024233,2]
[340932475,1730129433148,-5000.0,0.00024263,2]
[340932476,1730129433158,-500.0,0.00024313,2]
[340932477,1730129433167,-602.92123209,0.00024313,2]
[340932478,1730129433177,-500.0,0.00024313,2]
[340932479,1730129433187,-500.0,0.00024313,2]
[340932480,1730129433198,-500.0,0.00024313,2]
[340932481,1730129433207,-500.0,0.00024313,2]
[340932482,1730129433217,-500.0,0.00024313,2]
[340932483,1730129433227,-188.8230901,0.00024313,2]
[340932484,1730129433240,-500.0,0.00024313,2]
[340932485,1730129433250,-500.0,0.00024313,2]
[340932486,1730129433260,-500.0,0.00024313,2]
[340932487,1730129433270,-500.0,0.00024313,2]
[340932488,1730129433280,-547.18560378,0.00024313,2]
[340932489,1730129433291,-500.0,0.00024313,2]
[340932490,1730129433301,-500.0,0.00024313,2]
[340932491,1730129433311,-412.26554413,0.00024313,2]
[340932492,1730129433321,-500.0,0.00024313,2]
[340932493,1730129433332,-500.0,0.00024313,2]
[340932494,1730129433342,-500.0,0.00024313,2]
[340932495,1730129433352,-500.0,0.00024313,2]
[340932496,1730129433364,-500.0,0.00024313,2]
[340932497,1730129433373,-500.0,0.00024313,2]
[340932498,1730129433386,-500.0,0.00024313,2]
[340932499,1730129433396,-500.0,0.00024313,2]
[340932500,1730129433406,-500.0,0.00024313,2]
[340932501,1730129433418,-500.0,0.00024313,2]
[340932502,1730129433428,-500.0,0.00024313,2]
[340932503,1730129433438,-500.0,0.00024313,2]
[340932504,1730129433448,-500.0,0.00024313,2]
[340932505,1730129433458,-500.0,0.00024313,2]
[340932506,1730129433468,-500.0,0.00024313,2]
[340932507,1730129433479,-500.0,0.00024313,2]
[340932508,1730129433489,-500.0,0.00024313,2]
[340932509,1730129433499,-500.0,0.00024313,2]
[340932510,1730129433510,-500.0,0.00024313,2]
[340932511,1730129433519,-500.0,0.00024313,2]
[340932512,1730129433529,-500.0,0.00024313,2]
[340932513,1730129433539,-500.0,0.00024313,2]
[340932514,1730129433549,-500.0,0.00024313,2]
[340932515,1730129433560,-500.0,0.00024313,2]
[340932516,1730129433570,-500.0,0.00024313,2]
[340932517,1730129433580,-500.0,0.00024313,2]
[340932518,1730129433591,-622.78132986,0.00024313,2]
[340932519,1730129433602,-500.0,0.00024313,2]
[340932520,1730129433613,-500.0,0.00024313,2]
[340932521,1730129433623,-500.0,0.00024313,2]
[340932522,1730129433632,-450.0,0.00024313,2]
[340932523,1730129433642,-500.0,0.00024313,2]
[340932524,1730129433653,-500.0,0.00024313,2]
[340932525,1730129433665,-500.0,0.00024313,2]
[340932526,1730129433675,-500.0,0.00024313,2]
[340932527,1730129433686,-500.0,0.00024313,2]
[340932528,1730129433697,-500.0,0.00024313,2]
[340932529,1730129433708,-500.0,0.00024313,2]
[340932530,1730129433718,-500.0,0.00024313,2]
[340932531,1730129433728,-500.0,0.00024313,2]
[340932532,1730129433739,-500.0,0.00024313,2]
[340932533,1730129433750,-500.0,0.00024313,2]
[340932534,1730129433760,-500.0,0.00024313,2]
[340932535,1730129433771,-500.0,0.00024313,2]
[340932536,1730129433781,-500.0,0.00024313,2]
[340932537,1730129433792,-500.0,0.00024313,2]
[340932538,1730129433803,-500.0,0.00024313,2]
[340932539,1730129433814,-63574.5497199,0.00024314,3]
[340932540,1730129433824,-79232.3252744,0.00024314,3]
[340932541,1730129433835,-6314.66719577,0.00024321,2]
[340932542,1730129433846,-500.0,0.00024323,2]
[340932543,1730129433857,-500.0,0.00024323,2]
[340932544,1730129433868,-215.26021173,0.00024323,2]
[340932545,1730129433879,-232.14283515,0.00024323,2]
[340932546,1730129433889,-594.3097797,0.00024323,2]
[340932547,1730129433902,-500.0,0.00024323,2]
[340932548,1730129433913,-500.0,0.00024323,2]
[340932549,1730129433924,-188.55613532,0.00024323,2]
[340932550,1730129433936,-500.0,0.00024323,2]
[340932551,1730129433946,-500.0,0.00024323,2]
[340932552,1730129433956,-500.0,0.00024323,2]
[340932553,1730129433966,-500.0,0.00024323,2]
[340932554,1730129433977,-500.0,0.00024323,2]
[340932555,1730129433988,-500.0,0.00024323,2]
[340932556,1730129434000,-500.0,0.00024323,2]
[340932557,1730129434010,-366.01684579,0.00024323,2]
[340932558,1730129434020,-135659.53977179,0.00024324,2]
[340932559,1730129434030,-501.00089499,0.00024373,2]
[340932560,1730129434040,-500.92268459,0.00024373,2]
[340932561,1730129434050,-501.62809669,0.00024373,2]
[340932562,1730129434059,-1000.0,0.00024393,2]
[340932563,1730129434069,-21191.5165733,0.00024394,3]
[340932564,1730129434079,-26410.7750915,0.00024394,3]
[340932565,1730129434090,-11653.37989907,0.00024403,3]
[340932566,1730129434295,-9538.13667423,0.00024403,3]
[340932567,1730129434306,-26410.7750915,0.00024403,3]
[340932568,1730129434315,-42383.0331466,0.00024405,3]
[340932569,1730129434325,-52821.5501829,0.00024405,3]
[340932570,1730129434335,-5000.0,0.00024408,2]
[340932571,1730129434344,-5000.0,0.00024413,2]
[340932572,1730129434354,-5000.0,0.00024413,2]
[340932573,1730129434365,-21191.5165733,0.00024414,3]
[340932574,1730129434375,-26410.7750915,0.00024414,3]
[340932575,1730129434385,-5000.0,0.00024421,2]
[340932576,1730129434397,-5000.0,0.00024421,2]
[340932577,1730129434407,-21191.5165733,0.00024422,3]
[340932578,1730129434417,-18499.32511608,0.00024422,3]
[340932579,1730129434430,-7911.44997542,0.00024422,3]
[340932580,1730129434439,-5000.0,0.00024423,2]
[340932581,1730129434449,-5000.0,0.00024423,2]
[340932582,1730129434460,-5000.0,0.00024423,2]
[340932583,1730129434470,-5000.0,0.00024424,2]
[340932584,1730129434480,-5000.0,0.00024424,2]
[340932585,1730129434490,-5000.0,0.00024424,2]
[340932586,1730129434500,-5000.0,0.00024424,2]
[340932587,1730129434510,-5000.0,0.00024424,2]
[340932588,1730129434521,-5000.0,0.00024424,2]
[340932589,1730129434532,-5000.0,0.00024424,2]
[340932590,1730129434542,-5000.0,0.00024428,2]
[340932591,1730129434552,-5000.0,0.00024432,2]
[340932592,1730129434562,-1539.45647005,0.00024433,2]
[340932593,1730129434571,-1550.80693717,0.00024435,2]
[340932594,1730129434580,-10070.03520736,0.00024435,2]
[340932614,1730129438714,-8235.22388604,0.00024435,2]
[340932615,1730129438725,-450.03,0.00024443,2]
[340932616,1730129438736,-425248.00542441,0.00024444,2]
[340932617,1730129438749,-21191.5165733,0.0002447,3]
[340932618,1730129438759,-161.43701193,0.00024473,2]
[340932619,1730129438770,-500.0,0.00024473,2]
[340932620,1730129438780,-500.0,0.00024473,2]
[340932621,1730129438791,-623.08054102,0.00024473,2]
[340932622,1730129438802,-500.78858853,0.00024473,2]
[340932623,1730129438813,-501.23671854,0.00024473,2]
[340932624,1730129438823,-573.40670331,0.00024473,2]
[340932625,1730129438834,-500.0,0.00024473,2]
[340932626,1730129438846,-500.0,0.00024473,2]
[340932627,1730129438858,-15564.11855605,0.000245,2]
[340932628,1730129438870,-3000.0,0.000245,2]
[340932629,1730129438882,-1305.76175533,0.000245,2]
[340932630,1730129438892,-302.7503564,0.00024506,2]
[340932631,1730129438907,-3000.0,0.0002451,2]
[340932632,1730129438918,-3000.0,0.0002452,2]
[340932633,1730129438930,-3000.0,0.0002453,2]
[340932634,1730129438941,-3000.0,0.0002454,2]
[340932635,1730129438953,-3000.0,0.0002455,2]
[340932636,1730129438963,-500.0,0.00024558,7]
[340932637,1730129438974,-500.0,0.00024558,7]
[340932638,1730129438991,-500.0,0.00024558,7]
[340932639,1730129439002,-500.0,0.00024558,7]
[340932640,1730129439011,-500.0,0.00024558,7]
[340932641,1730129439021,-500.0,0.00024558,7]
[340932642,1730129439030,-500.0,0.00024558,7]
[340932643,1730129439039,-3000.0,0.0002456,2]
[340932644,1730129439049,-21191.5165733,0.0002456,3]
[340932645,1730129439059,-3000.0,0.0002457,2]
[340932646,1730129439070,-3054.747691,0.0002458,2]
[340932647,1730129439079,-150.112233,0.000246,2]
[340932648,1730129439089,-150.112233,0.000246,4]
[340932649,1730129439099,-150.112233,0.000246,5]
[340932650,1730129439109,-151.587881,0.000246,2]
[340932651,1730129439119,-210.8524058,0.00024603,2]
[340932652,1730129439129,-210.8524058,0.00024603,2]
[340932653,1730129439138,-210.8524058,0.00024603,2]
[340932654,1730129439149,-210.8524058,0.00024603,2]
[340932655,1730129439159,-210.8524058,0.00024603,2]
[340932656,1730129439168,-210.8524058,0.00024603,2]
[340932657,1730129439178,-210.8524058,0.00024603,2]
[340932658,1730129439188,-210.8524058,0.00024603,2]
[340932659,1730129439199,-210.8524058,0.00024603,2]
[340932660,1730129439210,-210.3593378,0.00024603,2]
[340932661,1730129439220,-79936.90879091,0.00024636,2]
[340932662,1730129439233,-500.0,0.00024657,4]
[340932663,1730129439245,-500.0,0.00024657,4]
[340932664,1730129439255,-500.0,0.00024657,4]
[340932665,1730129439264,-510.00937303,0.00024657,4]
[340932666,1730129439274,-500.0,0.00024657,4]
[340932667,1730129439283,-500.0,0.00024657,4]
[340932668,1730129439293,-500.0,0.00024657,4]
[340932669,1730129439303,-1140.24,0.00024657,4]
[340932670,1730129439313,-241.25085841,0.00024657,4]
[340932671,1730129439323,-500.0,0.00024657,4]
[340932672,1730129439332,-500.0,0.00024657,4]
[340932673,1730129439342,-500.0,0.00024657,4]
[340932674,1730129439352,-500.0,0.00024657,4]
[340932675,1730129439364,-749.87,0.00024657,4]
[340932676,1730129439375,-500.0,0.00024657,4]
[340932677,1730129439386,-500.0,0.00024657,4]
[340932678,1730129439396,-500.0,0.00024657,4]
[340932679,1730129439407,-500.0,0.00024657,4]
[340932680,1730129439418,-200.0,0.00024657,4]
[340932681,1730129439429,-543.99,0.00024657,4]
[340932682,1730129439440,-760.29,0.00024657,4]
[340932683,1730129439450,-500.0,0.00024657,4]
[340932684,1730129439461,-500.0,0.00024657,4]
[340932685,1730129439470,-500.0,0.00024657,4]
[340932686,1730129439482,-1004.66,0.00024657,4]
[340932687,1730129439491,-500.0,0.00024657,4]
[340932688,1730129439661,-639.97671426,0.00024657,2]
[340932689,1730129439673,-500.0,0.00024657,4]
[340932690,1730129439684,-500.0,0.00024657,4]
[340932691,1730129439694,-1133.69,0.00024657,4]
[340932692,1730129439703,-400.2693345,0.00024657,2]
[340932693,1730129439713,-591.96,0.00024657,4]
[340932694,1730129439723,-711.78,0.00024657,4]
[340932695,1730129439735,-578.82,0.00024657,4]
[340932696,1730129439745,-1542.68,0.00024657,4]
[340932697,1730129439755,-500.0,0.00024657,4]
[340932698,1730129439767,-722.74,0.00024657,4]
[340932699,1730129439778,-500.0,0.00024657,4]
[340932700,1730129439789,-955.43,0.00024657,4]
[340932701,1730129439799,-524.69,0.00024657,4]
[340932702,1730129439811,-500.0,0.00024657,4]
[340932703,1730129439831,-500.0,0.00024657,4]
[340932704,1730129439843,-507.77217019,0.00024657,4]
[340932705,1730129439853,-855.76,0.00024657,4]
[340932706,1730129439865,-890.47,0.00024657,4]
[340932707,1730129439878,-500.0,0.00024657,4]
[340932708,1730129439889,-500.0,0.00024657,4]
[340932709,1730129439901,-500.0,0.00024657,4]
[340932710,1730129439915,-276.39550799,0.00024657,4]
[340932711,1730129439926,-566.57,0.00024657,4]
[340932712,1730129439936,-633.26,0.00024657,4]
[340932713,1730129439947,-506.55754861,0.00024657,4]
[340932714,1730129439956,-1975.47,0.00024657,4]
[340932715,1730129439969,-500.0,0.00024657,4]
[340932716,1730129439984,-1713.77,0.00024657,4]
[340932717,1730129439994,-500.0,0.00024657,4]
[340932718,1730129440004,-729.11,0.00024657,4]
[340932719,1730129440014,-500.0,0.00024657,4]
[340932720,1730129440024,-500.0,0.00024657,4]
[340932721,1730129440034,-578.3130666,0.00024657,4]
[340932722,1730129440044,-963.09,0.00024657,4]
[340932723,1730129440055,-500.0,0.00024657,4]
[340932724,1730129440064,-503.02524028,0.00024657,4]
[340932725,1730129440075,-500.0,0.00024657,4]
[340932726,1730129440085,-505.01312577,0.00024657,4]
[340932727,1730129440095,-500.0,0.00024657,4]
[340932728,1730129440108,-500.0,0.00024657,4]
[340932729,1730129440119,-500.0,0.00024657,4]
[340932730,1730129440129,-500.0,0.00024657,4]
[340932731,1730129440139,-500.0,0.00024657,4]
[340932734,1730129440150,-500.0,0.00024657,4]
[340932736,1730129440160,-500.0,0.00024657,4]
[340932737,1730129440169,-500.0,0.00024657,4]
[340932738,1730129440180,-500.0,0.00024657,4]
[340932739,1730129440189,-500.0,0.00024657,4]
[340932740,1730129440199,-500.0,0.00024657,4]
[340932741,1730129440209,-608.05,0.00024657,4]
[340932742,1730129440219,-500.0,0.00024657,4]
[340932743,1730129440229,-823.3,0.00024657,4]
[340932744,1730129440239,-500.0,0.00024657,4]
[340932745,1730129440249,-500.0,0.00024657,4]
[340932746,1730129440259,-500.0,0.00024657,4]
[340932747,1730129440270,-500.0,0.00024657,4]
[340932748,1730129440280,-755.88,0.00024657,4]
[340932749,1730129440290,-503.3015057,0.00024657,4]
[340932750,1730129440301,-539.85,0.00024657,4]
[340932751,1730129440311,-500.0,0.00024657,4]
[340932752,1730129440321,-500.0,0.00024657,4]
[340932753,1730129440331,-500.0,0.00024657,4]
[340932754,1730129440341,-626.47,0.00024657,4]
[340932755,1730129440351,-571.68915706,0.00024657,4]
[340932756,1730129440366,-500.0,0.00024657,4]
[340932757,1730129440377,-500.0,0.00024657,4]
[340932758,1730129440386,-500.0,0.00024657,4]
[340932759,1730129440397,-500.0,0.00024657,4]
[340932760,1730129440407,-514.34,0.00024657,4]
[340932761,1730129440416,-500.0,0.00024657,4]
[340932762,1730129440426,-500.0,0.00024657,4]
[340932763,1730129440438,-500.0,0.00024657,4]
[340932765,1730129440448,-598.19,0.00024657,4]
[340932766,1730129440458,-500.0,0.00024657,4]
[340932767,1730129440468,-1067.13,0.00024657,4]
[340932768,1730129440477,-500.0,0.00024657,4]
[340932769,1730129440488,-843.82,0.00024657,4]
[340932770,1730129440498,-1143.48,0.00024657,4]
[340932771,1730129440508,-500.0,0.00024657,4]
[340932772,1730129440518,-1025.09,0.00024657,4]
[340932773,1730129440528,-500.0,0.00024657,4]
[340932774,1730129440539,-561.61,0.00024657,4]
[340932775,1730129440550,-527.41,0.00024657,4]
[340932776,1730129440562,-500.0,0.00024657,4]
[340932777,1730129440572,-500.0,0.00024657,4]
[340932778,1730129440583,-492.63913502,0.00024657,4]
[340932779,1730129440595,-500.0,0.00024657,4]
[340932780,1730129440605,-710.98,0.00024657,4]
[340932781,1730129440618,-500.0,0.00024657,4]
[340932782,1730129440630,-3382.1,0.00024657,4]
[340932783,1730129440640,-500.0,0.00024657,4]